[Event "Titled Tuesday Blitz February 15 Late 2022"]
[White "Antova, Gabriela"]
[Black "Goryachkina, Aleksandra"]
[WhiteFideId "2915235"]
[BlackFideId "4147103"]
[WhiteElo "2184"]
[BlackElo "2426"]
[Result "1-0"]
[Round "02"]
[TimeControl "180+1"]
[Date "2022.02.16"]
[WhiteClock "0:00:09"]
[BlackClock "0:00:02"]

1. d4 {[%clk 0:03:00]}  Nf6 {[%clk 0:02:59]} 2. c4 {[%clk 0:02:57]}  e6 {[%clk 0:02:59]} 3. Nf3 {[%clk 0:02:55]}  b6 {[%clk 0:02:57]} 4. a3 {[%clk 0:02:53]}  Bb7 {[%clk 0:02:53]} 5. Bf4 {[%clk 0:02:52]}  d6 {[%clk 0:02:44]} 6. Nc3 {[%clk 0:02:50]}  Ne4 {[%clk 0:02:42]} 7. Nxe4 {[%clk 0:02:45]}  Bxe4 {[%clk 0:02:43]} 8. e3 {[%clk 0:02:45]}  Nd7 {[%clk 0:02:39]} 9. Bd3 {[%clk 0:02:45]}  Bxd3 {[%clk 0:02:32]} 10. Qxd3 {[%clk 0:02:46]}  Be7 {[%clk 0:02:32]} 11. e4 {[%clk 0:02:41]}  O-O {[%clk 0:02:25]} 12. O-O {[%clk 0:02:33]}  Qc8 {[%clk 0:02:15]} 13. b4 {[%clk 0:02:22]}  a5 {[%clk 0:02:11]} 14. d5 {[%clk 0:02:16]}  Bf6 {[%clk 0:02:01]} 15. Rab1 {[%clk 0:01:42]}  axb4 {[%clk 0:01:49]} 16. axb4 {[%clk 0:01:43]}  Qa6 {[%clk 0:01:45]} 17. Rfd1 {[%clk 0:01:11]}  Qa2 {[%clk 0:01:44]} 18. h4 {[%clk 0:00:57]}  Ra3 {[%clk 0:01:40]} 19. Qf1 {[%clk 0:00:39]}  Rc3 {[%clk 0:01:38]} 20. Nd2 {[%clk 0:00:27]}  Rc2 {[%clk 0:01:33]} 21. h5 {[%clk 0:00:22]}  h6 {[%clk 0:01:32]} 22. Qd3 {[%clk 0:00:18]}  Ne5 {[%clk 0:01:17]} 23. Bxe5 {[%clk 0:00:18]}  Bxe5 {[%clk 0:01:17]} 24. Rbc1 {[%clk 0:00:17]}  Rxc1 {[%clk 0:01:12]} 25. Rxc1 {[%clk 0:00:18]}  Ra8 {[%clk 0:01:05]} 26. g3 {[%clk 0:00:18]}  Ra3 {[%clk 0:00:59]} 27. Qc2 {[%clk 0:00:18]}  Qxc2 {[%clk 0:00:48]} 28. Rxc2 {[%clk 0:00:19]}  Bd4 {[%clk 0:00:36]} 29. Kg2 {[%clk 0:00:19]}  Kf8 {[%clk 0:00:34]} 30. Nf3 {[%clk 0:00:18]}  Bc3 {[%clk 0:00:33]} 31. b5 {[%clk 0:00:17]}  Ke7 {[%clk 0:00:31]} 32. Kf1 {[%clk 0:00:15]}  Bf6 {[%clk 0:00:24]} 33. Ke2 {[%clk 0:00:16]}  Ra1 {[%clk 0:00:24]} 34. Ne1 {[%clk 0:00:15]}  Kd7 {[%clk 0:00:21]} 35. g4 {[%clk 0:00:15]}  Be5 {[%clk 0:00:17]} 36. Nd3 {[%clk 0:00:15]}  Bd4 {[%clk 0:00:15]} 37. Rd2 {[%clk 0:00:12]}  Bc5 {[%clk 0:00:10]} 38. Nxc5+ {[%clk 0:00:11]}  bxc5 {[%clk 0:00:10]} 39. Rc2 {[%clk 0:00:10]}  e5 {[%clk 0:00:09]} 40. Ke3 {[%clk 0:00:10]}  Kc8 {[%clk 0:00:07]} 41. f3 {[%clk 0:00:10]}  Kb7 {[%clk 0:00:07]} 42. Rg2 {[%clk 0:00:10]}  f6 {[%clk 0:00:06]} 43. Rc2 {[%clk 0:00:09]}  Kb6 {[%clk 0:00:07]} 44. Kd3 {[%clk 0:00:08]}  Ka5 {[%clk 0:00:06]} 45. Rb2 {[%clk 0:00:08]}  Ra3+ {[%clk 0:00:05]} 46. Ke2 {[%clk 0:00:09]}  Ra4 {[%clk 0:00:05]} 47. Kd3 {[%clk 0:00:09]}  Kb6 {[%clk 0:00:04]} 48. Rb3 {[%clk 0:00:09]}  Ra2 {[%clk 0:00:04]} 49. Ke3 {[%clk 0:00:09]}  Ka5 {[%clk 0:00:04]} 50. Kd3 {[%clk 0:00:09]}  Ka4 {[%clk 0:00:04]} 51. b6 {[%clk 0:00:07]}  Kxb3 {[%clk 0:00:03]} 52. b7 {[%clk 0:00:08]}  Ra3 {[%clk 0:00:02]} 53. b8=Q+ {[%clk 0:00:08]}  Ka2+ {[%clk 0:00:02]} 54. Kd2 {[%clk 0:00:08]}  Rb3 {[%clk 0:00:02]} 55. Qxc7 {[%clk 0:00:09]} 1-0


[Site "https://www.chess.com"]

[Event "Titled Tuesday Blitz February 15 Late 2022"]
[White "Araujo Filho, Luiz Antonio Coel"]
[Black "Le Goff, Ronan"]
[WhiteFideId "2130661"]
[BlackFideId "612073"]
[WhiteElo "2211"]
[BlackElo "2276"]
[Result "0-1"]
[Round "02"]
[TimeControl "180+1"]
[Date "2022.02.16"]
[WhiteClock "0:01:23"]
[BlackClock "0:02:35"]

1. d4 {[%clk 0:03:00]}  d5 {[%clk 0:02:59]} 2. Nf3 {[%clk 0:03:01]}  c6 {[%clk 0:02:59]} 3. e3 {[%clk 0:03:01]}  g6 {[%clk 0:02:58]} 4. Nbd2 {[%clk 0:03:01]}  Bg7 {[%clk 0:02:59]} 5. b3 {[%clk 0:03:02]}  Nf6 {[%clk 0:02:59]} 6. Bb2 {[%clk 0:03:02]}  O-O {[%clk 0:03:00]} 7. Be2 {[%clk 0:03:03]}  a5 {[%clk 0:03:01]} 8. O-O {[%clk 0:03:03]}  a4 {[%clk 0:03:01]} 9. c4 {[%clk 0:03:03]}  a3 {[%clk 0:03:01]} 10. Bc3 {[%clk 0:03:01]}  Bg4 {[%clk 0:03:01]} 11. Rc1 {[%clk 0:02:59]}  Nbd7 {[%clk 0:03:01]} 12. Ne5 {[%clk 0:02:56]}  Bxe2 {[%clk 0:03:01]} 13. Qxe2 {[%clk 0:02:57]}  e6 {[%clk 0:03:01]} 14. f4 {[%clk 0:02:55]}  Re8 {[%clk 0:03:00]} 15. Ba1 {[%clk 0:02:39]}  Nb6 {[%clk 0:03:00]} 16. h3 {[%clk 0:02:35]}  Nc8 {[%clk 0:03:00]} 17. g4 {[%clk 0:02:32]}  Nd6 {[%clk 0:02:59]} 18. f5 {[%clk 0:02:28]}  exf5 {[%clk 0:02:56]} 19. gxf5 {[%clk 0:02:28]}  Nxf5 {[%clk 0:02:56]} 20. Rxf5 {[%clk 0:02:02]}  gxf5 {[%clk 0:02:56]} 21. Rf1 {[%clk 0:02:03]}  Qc8 {[%clk 0:02:42]} 22. Kh2 {[%clk 0:01:31]}  Qe6 {[%clk 0:02:36]} 23. Qh5 {[%clk 0:01:23]}  Nxh5 {[%clk 0:02:35]} 0-1


[Site "https://www.chess.com"]

[Event "Titled Tuesday Blitz February 15 Late 2022"]
[White "Barp, Alberto"]
[Black "Jones, Gawain C B"]
[WhiteFideId "872555"]
[BlackFideId "409561"]
[WhiteElo "2229"]
[BlackElo "2657"]
[Result "1/2-1/2"]
[Round "02"]
[TimeControl "180+1"]
[Date "2022.02.15"]
[WhiteClock "0:00:18"]
[BlackClock "0:00:17"]

1. d4 {[%clk 0:03:00]}  Nf6 {[%clk 0:02:59]} 2. c4 {[%clk 0:02:58]}  g6 {[%clk 0:03:00]} 3. g3 {[%clk 0:02:54]}  Bg7 {[%clk 0:03:00]} 4. Bg2 {[%clk 0:02:55]}  c5 {[%clk 0:03:01]} 5. Nf3 {[%clk 0:02:54]}  O-O {[%clk 0:02:59]} 6. O-O {[%clk 0:02:51]}  d6 {[%clk 0:02:59]} 7. Nc3 {[%clk 0:02:51]}  Nc6 {[%clk 0:02:59]} 8. dxc5 {[%clk 0:02:51]}  dxc5 {[%clk 0:03:00]} 9. Bf4 {[%clk 0:02:50]}  Be6 {[%clk 0:02:50]} 10. Ne5 {[%clk 0:02:50]}  Nxe5 {[%clk 0:02:45]} 11. Bxe5 {[%clk 0:02:51]}  Qc8 {[%clk 0:02:46]} 12. Qb3 {[%clk 0:02:47]}  Bh3 {[%clk 0:02:39]} 13. Qxb7 {[%clk 0:02:21]}  Qxb7 {[%clk 0:02:33]} 14. Bxb7 {[%clk 0:02:21]}  Bxf1 {[%clk 0:02:33]} 15. Bxa8 {[%clk 0:02:20]}  Bxe2 {[%clk 0:02:33]} 16. Nxe2 {[%clk 0:02:06]}  Rxa8 {[%clk 0:02:32]} 17. Rd1 {[%clk 0:02:07]}  Ne4 {[%clk 0:02:16]} 18. Bxg7 {[%clk 0:02:06]}  Kxg7 {[%clk 0:02:17]} 19. Rd7 {[%clk 0:02:03]}  Kf6 {[%clk 0:02:05]} 20. b3 {[%clk 0:01:59]}  a5 {[%clk 0:02:02]} 21. Rc7 {[%clk 0:01:44]}  a4 {[%clk 0:01:57]} 22. f3 {[%clk 0:01:43]}  axb3 {[%clk 0:01:47]} 23. axb3 {[%clk 0:01:41]}  Ra1+ {[%clk 0:01:35]} 24. Kg2 {[%clk 0:01:41]}  Ra2 {[%clk 0:01:34]} 25. fxe4 {[%clk 0:01:40]}  Rxe2+ {[%clk 0:01:34]} 26. Kf3 {[%clk 0:01:39]}  Rb2 {[%clk 0:01:34]} 27. Rxc5 {[%clk 0:01:31]}  Rxb3+ {[%clk 0:01:34]} 28. Kf4 {[%clk 0:01:28]}  Rc3 {[%clk 0:01:25]} 29. Rc6+ {[%clk 0:01:26]}  e6 {[%clk 0:01:15]} 30. e5+ {[%clk 0:01:26]}  Ke7 {[%clk 0:01:15]} 31. Rc7+ {[%clk 0:01:25]}  Ke8 {[%clk 0:01:16]} 32. h4 {[%clk 0:01:17]}  h6 {[%clk 0:01:13]} 33. Kg4 {[%clk 0:00:54]}  Re3 {[%clk 0:01:09]} 34. Kf4 {[%clk 0:00:54]}  Re1 {[%clk 0:01:06]} 35. g4 {[%clk 0:00:48]}  g5+ {[%clk 0:00:59]} 36. hxg5 {[%clk 0:00:46]}  Rf1+ {[%clk 0:00:59]} 37. Kg3 {[%clk 0:00:45]}  hxg5 {[%clk 0:00:59]} 38. Rc8+ {[%clk 0:00:42]}  Kd7 {[%clk 0:00:55]} 39. Rg8 {[%clk 0:00:43]}  Rc1 {[%clk 0:00:52]} 40. Rxg5 {[%clk 0:00:43]}  Rc3+ {[%clk 0:00:50]} 41. Kf4 {[%clk 0:00:33]}  Rxc4+ {[%clk 0:00:50]} 42. Kf3 {[%clk 0:00:33]}  Rc8 {[%clk 0:00:29]} 43. Rg7 {[%clk 0:00:33]}  Ke7 {[%clk 0:00:25]} 44. g5 {[%clk 0:00:32]}  Rc3+ {[%clk 0:00:23]} 45. Kf4 {[%clk 0:00:31]}  Rc4+ {[%clk 0:00:22]} 46. Kf3 {[%clk 0:00:32]}  Kf8 {[%clk 0:00:21]} 47. Rh7 {[%clk 0:00:31]}  Kg8 {[%clk 0:00:21]} 48. Rh6 {[%clk 0:00:30]}  Kg7 {[%clk 0:00:21]} 49. Rf6 {[%clk 0:00:30]}  Rc5 {[%clk 0:00:19]} 50. Kf4 {[%clk 0:00:27]}  Ra5 {[%clk 0:00:19]} 51. g6 {[%clk 0:00:25]}  Ra4+ {[%clk 0:00:16]} 52. Kg5 {[%clk 0:00:24]}  fxg6 {[%clk 0:00:17]} 53. Rxe6 {[%clk 0:00:21]}  Kf7 {[%clk 0:00:16]} 54. Rf6+ {[%clk 0:00:20]}  Ke7 {[%clk 0:00:17]} 55. Rxg6 {[%clk 0:00:20]}  Ra1 {[%clk 0:00:16]} 56. Rb6 {[%clk 0:00:19]}  Rf1 {[%clk 0:00:16]} 57. Rf6 {[%clk 0:00:17]}  Re1 {[%clk 0:00:16]} 58. Kf5 {[%clk 0:00:17]}  Rf1+ {[%clk 0:00:16]} 59. Ke4 {[%clk 0:00:17]}  Rxf6 {[%clk 0:00:16]} 60. exf6+ {[%clk 0:00:18]}  Kxf6 {[%clk 0:00:17]} 1/2-1/2


[Site "https://www.chess.com"]

[Event "Titled Tuesday Blitz February 15 Late 2022"]
[White "Bolanos, Fernando"]
[Black "Villegas, Pierre"]
[WhiteFideId "3304094"]
[BlackFideId "654183"]
[WhiteElo "2019"]
[BlackElo "2410"]
[Result "0-1"]
[Round "02"]
[TimeControl "180+1"]
[Date "2022.02.16"]
[WhiteClock "0:01:55"]
[BlackClock "0:01:14"]

1. e4 {[%clk 0:02:58]}  c6 {[%clk 0:03:00]} 2. Nf3 {[%clk 0:02:58]}  d5 {[%clk 0:03:00]} 3. Nc3 {[%clk 0:02:59]}  b5 {[%clk 0:03:00]} 4. exd5 {[%clk 0:02:58]}  b4 {[%clk 0:02:59]} 5. Ne2 {[%clk 0:02:58]}  cxd5 {[%clk 0:02:59]} 6. d4 {[%clk 0:02:58]}  e6 {[%clk 0:02:58]} 7. Ng3 {[%clk 0:02:59]}  Nf6 {[%clk 0:02:58]} 8. Bb5+ {[%clk 0:02:59]}  Bd7 {[%clk 0:02:58]} 9. Bxd7+ {[%clk 0:03:00]}  Nbxd7 {[%clk 0:02:57]} 10. O-O {[%clk 0:03:00]}  Be7 {[%clk 0:02:57]} 11. Ne5 {[%clk 0:03:00]}  Nxe5 {[%clk 0:02:56]} 12. dxe5 {[%clk 0:03:01]}  Nd7 {[%clk 0:02:56]} 13. f4 {[%clk 0:02:59]}  g6 {[%clk 0:02:56]} 14. Kh1 {[%clk 0:02:59]}  O-O {[%clk 0:02:55]} 15. Be3 {[%clk 0:02:59]}  Qc7 {[%clk 0:02:54]} 16. Rf2 {[%clk 0:02:59]}  Rfc8 {[%clk 0:02:54]} 17. Qg4 {[%clk 0:02:58]}  a5 {[%clk 0:02:44]} 18. Raf1 {[%clk 0:02:58]}  a4 {[%clk 0:02:42]} 19. h4 {[%clk 0:02:57]}  Qc4 {[%clk 0:02:38]} 20. b3 {[%clk 0:02:56]}  Qc3 {[%clk 0:02:29]} 21. Bc1 {[%clk 0:02:42]}  Qd4 {[%clk 0:02:22]} 22. h5 {[%clk 0:02:34]}  Nxe5 {[%clk 0:02:20]} 23. Qh3 {[%clk 0:02:29]}  Nd7 {[%clk 0:02:15]} 24. f5 {[%clk 0:02:26]}  exf5 {[%clk 0:02:10]} 25. Nxf5 {[%clk 0:02:27]}  gxf5 {[%clk 0:02:07]} 26. Rxf5 {[%clk 0:02:25]}  Qh4 {[%clk 0:02:01]} 27. Rxf7 {[%clk 0:02:23]}  Qxh3+ {[%clk 0:01:57]} 28. gxh3 {[%clk 0:02:24]}  Rf8 {[%clk 0:01:57]} 29. Rxf8+ {[%clk 0:02:14]}  Nxf8 {[%clk 0:01:52]} 30. Re1 {[%clk 0:02:10]}  axb3 {[%clk 0:01:48]} 31. axb3 {[%clk 0:02:09]}  Ra1 {[%clk 0:01:45]} 32. Bd2 {[%clk 0:02:06]}  Rxe1+ {[%clk 0:01:41]} 33. Bxe1 {[%clk 0:02:07]}  Kg7 {[%clk 0:01:37]} 34. Kg2 {[%clk 0:02:08]}  Kf6 {[%clk 0:01:36]} 35. Kf3 {[%clk 0:02:07]}  Kf5 {[%clk 0:01:35]} 36. Ke3 {[%clk 0:02:03]}  Ne6 {[%clk 0:01:35]} 37. Bg3 {[%clk 0:01:59]}  Bc5+ {[%clk 0:01:32]} 38. Kd3 {[%clk 0:01:59]}  Nf4+ {[%clk 0:01:32]} 39. Kd2 {[%clk 0:01:58]}  Nxh3 {[%clk 0:01:28]} 40. h6 {[%clk 0:01:58]}  Ng5 {[%clk 0:01:27]} 41. Kd3 {[%clk 0:01:57]}  Nf7 {[%clk 0:01:26]} 42. Be1 {[%clk 0:01:57]}  Nxh6 {[%clk 0:01:26]} 43. c3 {[%clk 0:01:58]}  bxc3 {[%clk 0:01:25]} 44. Bxc3 {[%clk 0:01:58]}  Ng4 {[%clk 0:01:24]} 45. b4 {[%clk 0:01:59]}  Bb6 {[%clk 0:01:25]} 46. b5 {[%clk 0:01:59]}  Ne5+ {[%clk 0:01:24]} 47. Kc2 {[%clk 0:01:59]}  d4 {[%clk 0:01:24]} 48. Be1 {[%clk 0:01:59]}  Ke4 {[%clk 0:01:23]} 49. Kb3 {[%clk 0:01:58]}  d3 {[%clk 0:01:22]} 50. Ka4 {[%clk 0:01:51]}  Nf3 {[%clk 0:01:20]} 51. Bc3 {[%clk 0:01:51]}  h5 {[%clk 0:01:20]} 52. Kb4 {[%clk 0:01:51]}  h4 {[%clk 0:01:16]} 53. Kc4 {[%clk 0:01:52]}  h3 {[%clk 0:01:16]} 54. Be1 {[%clk 0:01:52]}  Nxe1 {[%clk 0:01:15]} 55. Kc3 {[%clk 0:01:52]}  Nf3 {[%clk 0:01:15]} 56. Kb2 {[%clk 0:01:51]}  h2 {[%clk 0:01:15]} 57. Kc3 {[%clk 0:01:52]}  h1=Q {[%clk 0:01:15]} 58. Kb4 {[%clk 0:01:53]}  Qb1+ {[%clk 0:01:14]} 59. Kc4 {[%clk 0:01:54]}  Qc2+ {[%clk 0:01:14]} 60. Kb4 {[%clk 0:01:54]}  Qc5+ {[%clk 0:01:14]} 61. Ka4 {[%clk 0:01:54]}  Qc4+ {[%clk 0:01:14]} 62. Ka3 {[%clk 0:01:55]}  Bc5+ {[%clk 0:01:14]} 63. Kb2 {[%clk 0:01:54]}  Qc2+ {[%clk 0:01:14]} 64. Ka1 {[%clk 0:01:55]}  Bd4# {[%clk 0:01:14]} 0-1


[Site "https://www.chess.com"]

[Event "Titled Tuesday Blitz February 15 Late 2022"]
[White "Bon, Michael"]
[Black "Vine, Elzbieta"]
[WhiteFideId "620696"]
[BlackFideId "1119320"]
[WhiteElo "2439"]
[BlackElo "1821"]
[Result "1-0"]
[Round "02"]
[TimeControl "180+1"]
[Date "2022.02.16"]
[WhiteClock "0:01:13"]
[BlackClock "0:00:24"]

1. e4 {[%clk 0:02:57]}  c5 {[%clk 0:02:58]} 2. Nf3 {[%clk 0:02:56]}  d6 {[%clk 0:02:55]} 3. d4 {[%clk 0:02:56]}  cxd4 {[%clk 0:02:55]} 4. Nxd4 {[%clk 0:02:57]}  Nf6 {[%clk 0:02:55]} 5. Nc3 {[%clk 0:02:58]}  a6 {[%clk 0:02:55]} 6. Bg5 {[%clk 0:02:57]}  e5 {[%clk 0:02:44]} 7. Nf5 {[%clk 0:02:54]}  Bxf5 {[%clk 0:02:16]} 8. exf5 {[%clk 0:02:55]}  Nbd7 {[%clk 0:02:07]} 9. g3 {[%clk 0:02:53]}  h6 {[%clk 0:02:07]} 10. Be3 {[%clk 0:02:50]}  Be7 {[%clk 0:01:58]} 11. Bg2 {[%clk 0:02:50]}  Qc7 {[%clk 0:01:53]} 12. a4 {[%clk 0:02:48]}  O-O {[%clk 0:01:52]} 13. O-O {[%clk 0:02:48]}  Nb6 {[%clk 0:01:46]} 14. h3 {[%clk 0:02:19]}  Rfd8 {[%clk 0:01:41]} 15. Bxb6 {[%clk 0:01:45]}  Qxb6 {[%clk 0:01:40]} 16. b3 {[%clk 0:01:46]}  Rac8 {[%clk 0:01:31]} 17. Nd5 {[%clk 0:01:46]}  Nxd5 {[%clk 0:01:28]} 18. Bxd5 {[%clk 0:01:47]}  Qc7 {[%clk 0:01:19]} 19. c4 {[%clk 0:01:43]}  b6 {[%clk 0:01:14]} 20. Qh5 {[%clk 0:01:39]}  Bf6 {[%clk 0:01:11]} 21. Rae1 {[%clk 0:01:33]}  Rd7 {[%clk 0:01:03]} 22. h4 {[%clk 0:01:32]}  Qc5 {[%clk 0:00:57]} 23. g4 {[%clk 0:01:26]}  b5 {[%clk 0:00:57]} 24. axb5 {[%clk 0:01:25]}  axb5 {[%clk 0:00:56]} 25. g5 {[%clk 0:01:25]}  bxc4 {[%clk 0:00:55]} 26. bxc4 {[%clk 0:01:19]}  Bd8 {[%clk 0:00:35]} 27. gxh6 {[%clk 0:01:13]}  gxh6 {[%clk 0:00:31]} 28. Qg6+ {[%clk 0:01:11]}  Kf8 {[%clk 0:00:28]} 29. Qxh6+ {[%clk 0:01:12]}  Ke8 {[%clk 0:00:25]} 30. Qh8+ {[%clk 0:01:12]}  Ke7 {[%clk 0:00:24]} 31. f6# {[%clk 0:01:13]} 1-0


[Site "https://www.chess.com"]

[Event "Titled Tuesday Blitz February 15 Late 2022"]
[White "Bugayev, Vladimir"]
[Black "Bluebaum, Matthias"]
[WhiteFideId "30901480"]
[BlackFideId "24651516"]
[WhiteElo "2417"]
[BlackElo "2550"]
[Result "0-1"]
[Round "02"]
[TimeControl "180+1"]
[Date "2022.02.16"]
[WhiteClock "0:00:19"]
[BlackClock "0:00:37"]

1. e4 {[%clk 0:02:51]}  c6 {[%clk 0:02:59]} 2. d4 {[%clk 0:02:50]}  d5 {[%clk 0:03:00]} 3. exd5 {[%clk 0:02:51]}  cxd5 {[%clk 0:02:59]} 4. Bd3 {[%clk 0:02:51]}  Nc6 {[%clk 0:02:55]} 5. c3 {[%clk 0:02:52]}  Nf6 {[%clk 0:02:54]} 6. Bf4 {[%clk 0:02:52]}  Bg4 {[%clk 0:02:54]} 7. Qb3 {[%clk 0:02:52]}  Qd7 {[%clk 0:02:54]} 8. Nd2 {[%clk 0:02:52]}  e6 {[%clk 0:02:54]} 9. Ngf3 {[%clk 0:02:53]}  Bd6 {[%clk 0:02:54]} 10. Bxd6 {[%clk 0:02:54]}  Qxd6 {[%clk 0:02:55]} 11. O-O {[%clk 0:02:54]}  O-O {[%clk 0:02:55]} 12. Rae1 {[%clk 0:02:54]}  Rab8 {[%clk 0:02:51]} 13. Ne5 {[%clk 0:02:52]}  Bh5 {[%clk 0:02:43]} 14. f4 {[%clk 0:02:51]}  b5 {[%clk 0:02:43]} 15. a3 {[%clk 0:02:45]}  Rfc8 {[%clk 0:02:39]} 16. Ndf3 {[%clk 0:02:29]}  a5 {[%clk 0:02:32]} 17. Nxc6 {[%clk 0:02:19]}  Qxc6 {[%clk 0:02:30]} 18. Ne5 {[%clk 0:02:20]}  Qb6 {[%clk 0:02:31]} 19. Qc2 {[%clk 0:01:57]}  b4 {[%clk 0:02:29]} 20. axb4 {[%clk 0:01:55]}  axb4 {[%clk 0:02:29]} 21. g4 {[%clk 0:01:50]}  bxc3 {[%clk 0:02:24]} 22. bxc3 {[%clk 0:01:47]}  Bg6 {[%clk 0:02:15]} 23. Nxg6 {[%clk 0:01:34]}  hxg6 {[%clk 0:02:15]} 24. f5 {[%clk 0:01:34]}  exf5 {[%clk 0:02:11]} 25. gxf5 {[%clk 0:01:33]}  g5 {[%clk 0:02:11]} 26. Re3 {[%clk 0:01:21]}  Qb2 {[%clk 0:01:52]} 27. Qxb2 {[%clk 0:01:18]}  Rxb2 {[%clk 0:01:53]} 28. Rc1 {[%clk 0:01:00]}  Ra8 {[%clk 0:01:49]} 29. c4 {[%clk 0:00:59]}  dxc4 {[%clk 0:01:46]} 30. Bxc4 {[%clk 0:00:58]}  Kf8 {[%clk 0:01:34]} 31. d5 {[%clk 0:00:57]}  Rc8 {[%clk 0:01:31]} 32. d6 {[%clk 0:00:53]}  Rb6 {[%clk 0:01:27]} 33. Re7 {[%clk 0:00:52]}  Rxd6 {[%clk 0:00:43]} 34. Rxf7+ {[%clk 0:00:50]}  Ke8 {[%clk 0:00:44]} 35. Rxg7 {[%clk 0:00:44]}  Rc5 {[%clk 0:00:44]} 36. Rxg5 {[%clk 0:00:35]}  Kf8 {[%clk 0:00:43]} 37. Rg2 {[%clk 0:00:20]}  Rd4 {[%clk 0:00:35]} 38. Rgc2 {[%clk 0:00:20]}  Rg4+ {[%clk 0:00:35]} 39. Kh1 {[%clk 0:00:20]}  Ne4 {[%clk 0:00:33]} 40. Bd3 {[%clk 0:00:15]}  Nf2+ {[%clk 0:00:31]} 41. Rxf2 {[%clk 0:00:15]}  Rxc1+ {[%clk 0:00:32]} 42. Rf1 {[%clk 0:00:15]}  Rc3 {[%clk 0:00:33]} 43. Rd1 {[%clk 0:00:14]}  Rd4 {[%clk 0:00:32]} 44. Be2 {[%clk 0:00:13]}  Rxd1+ {[%clk 0:00:33]} 45. Bxd1 {[%clk 0:00:14]}  Rc1 {[%clk 0:00:34]} 46. Kg2 {[%clk 0:00:14]}  Rxd1 {[%clk 0:00:35]} 47. Kf3 {[%clk 0:00:15]}  Rd5 {[%clk 0:00:35]} 48. Kg4 {[%clk 0:00:16]}  Ra5 {[%clk 0:00:35]} 49. Kg5 {[%clk 0:00:17]}  Kf7 {[%clk 0:00:36]} 50. h4 {[%clk 0:00:18]}  Ra1 {[%clk 0:00:36]} 51. h5 {[%clk 0:00:19]}  Rg1+ {[%clk 0:00:36]} 52. Kf4 {[%clk 0:00:19]}  Kf6 {[%clk 0:00:37]} 0-1


[Site "https://www.chess.com"]

[Event "Titled Tuesday Blitz February 15 Late 2022"]
[White "Celestino, Rafael Teixeira"]
[Black "Brunner, Nicolas"]
[WhiteFideId "2108925"]
[BlackFideId "620246"]
[WhiteElo "2295"]
[BlackElo "2372"]
[Result "0-1"]
[Round "02"]
[TimeControl "180+1"]
[Date "2022.02.16"]
[WhiteClock "0:00:02"]
[BlackClock "0:00:40"]

1. e4 {[%clk 0:02:59]}  e5 {[%clk 0:02:59]} 2. Nf3 {[%clk 0:02:59]}  Nc6 {[%clk 0:02:59]} 3. Bc4 {[%clk 0:02:58]}  Nf6 {[%clk 0:02:59]} 4. Ng5 {[%clk 0:02:51]}  d5 {[%clk 0:02:58]} 5. exd5 {[%clk 0:02:51]}  Na5 {[%clk 0:02:57]} 6. Bb5+ {[%clk 0:02:52]}  c6 {[%clk 0:02:57]} 7. dxc6 {[%clk 0:02:53]}  bxc6 {[%clk 0:02:57]} 8. Qf3 {[%clk 0:02:53]}  Be7 {[%clk 0:02:51]} 9. Bxc6+ {[%clk 0:02:43]}  Nxc6 {[%clk 0:02:50]} 10. Qxc6+ {[%clk 0:02:44]}  Bd7 {[%clk 0:02:49]} 11. Qc4 {[%clk 0:02:44]}  O-O {[%clk 0:02:48]} 12. O-O {[%clk 0:02:44]}  Rc8 {[%clk 0:02:46]} 13. Qb3 {[%clk 0:02:38]}  h6 {[%clk 0:02:44]} 14. Nf3 {[%clk 0:02:36]}  e4 {[%clk 0:02:42]} 15. Ne5 {[%clk 0:02:32]}  Be6 {[%clk 0:02:41]} 16. Qa4 {[%clk 0:02:12]}  Qd5 {[%clk 0:02:38]} 17. d4 {[%clk 0:02:10]}  exd3 {[%clk 0:02:33]} 18. Nxd3 {[%clk 0:02:10]}  Qc4 {[%clk 0:02:18]} 19. Qxc4 {[%clk 0:02:06]}  Rxc4 {[%clk 0:02:17]} 20. Nc3 {[%clk 0:02:04]}  Rfc8 {[%clk 0:02:14]} 21. Bd2 {[%clk 0:01:56]}  Nd5 {[%clk 0:02:10]} 22. Nxd5 {[%clk 0:01:45]}  Bxd5 {[%clk 0:02:10]} 23. c3 {[%clk 0:01:46]}  Rb8 {[%clk 0:02:05]} 24. Rfe1 {[%clk 0:01:39]}  Bf6 {[%clk 0:02:04]} 25. Bf4 {[%clk 0:01:34]}  Rb7 {[%clk 0:02:03]} 26. Re8+ {[%clk 0:01:29]}  Kh7 {[%clk 0:02:02]} 27. Be5 {[%clk 0:01:29]}  Re4 {[%clk 0:01:51]} 28. f4 {[%clk 0:00:44]}  Re2 {[%clk 0:01:33]} 29. Kf1 {[%clk 0:00:37]}  Rxg2 {[%clk 0:01:30]} 30. Bxf6 {[%clk 0:00:37]}  gxf6 {[%clk 0:01:28]} 31. Nb4 {[%clk 0:00:31]}  Rxh2 {[%clk 0:01:21]} 32. Rae1 {[%clk 0:00:23]}  Be6 {[%clk 0:01:13]} 33. f5 {[%clk 0:00:14]}  Bxf5 {[%clk 0:01:11]} 34. R1e7 {[%clk 0:00:14]}  Rxe7 {[%clk 0:01:03]} 35. Rxe7 {[%clk 0:00:15]}  Kg6 {[%clk 0:01:01]} 36. b3 {[%clk 0:00:15]}  a5 {[%clk 0:01:00]} 37. Nc6 {[%clk 0:00:07]}  Rxa2 {[%clk 0:00:59]} 38. Ra7 {[%clk 0:00:08]}  Rb2 {[%clk 0:00:55]} 39. b4 {[%clk 0:00:08]}  axb4 {[%clk 0:00:55]} 40. cxb4 {[%clk 0:00:08]}  h5 {[%clk 0:00:53]} 41. Rb7 {[%clk 0:00:07]}  Bd3+ {[%clk 0:00:52]} 42. Kg1 {[%clk 0:00:07]}  Be4 {[%clk 0:00:50]} 43. Ne7+ {[%clk 0:00:04]}  Kg5 {[%clk 0:00:49]} 44. Rb5+ {[%clk 0:00:05]}  f5 {[%clk 0:00:48]} 45. Nc8 {[%clk 0:00:03]}  h4 {[%clk 0:00:46]} 46. Nd6 {[%clk 0:00:03]}  Kf4 {[%clk 0:00:42]} 47. Nc4 {[%clk 0:00:03]}  Rb1+ {[%clk 0:00:41]} 48. Kh2 {[%clk 0:00:02]}  Rh1# {[%clk 0:00:40]} 0-1


[Site "https://www.chess.com"]